fUST/lending_fUST_20260201
["ID","MTS","AMOUNT","RATE_DAILY","PERIOD"]
[404161972,1769888857564,942.14117835,0.000131,2]
[404161980,1769888872042,-253.20621505,0.00013266,2]
[404161981,1769888874013,-252.00030572,0.00013266,2]
[404161982,1769888878915,-125.65917499,0.00013266,2]
[404161983,1769888878942,-62.5713917,0.00013266,2]
[404161984,1769888880748,505.20652077,0.000131,2]
[404161985,1769888881396,-198.0,0.00013266,2]
[404161987,1769888883763,-239.4286083,0.00013266,2]
[404161988,1769888883787,-67.8871057,0.00013266,2]
[404161989,1769888885878,-197.38282009,0.00013266,2]
[404161990,1769888888480,-234.73007421,0.00013266,2]
[404161991,1769888888506,-100.54125826,0.00013266,2]
[404161992,1769888890333,1424.54606358,0.00012057,2]
[404161993,1769888891660,-399.45874174,0.00013266,2]
[404161994,1769888891683,-197.03369195,0.00013266,2]
[404161995,1769888894391,-169.67213584,0.00013266,2]
[404161996,1769888895935,-133.29417221,0.00013266,2]
[404161997,1769888895961,-189.47908371,0.00013266,2]
[404161998,1769888897976,-310.52091629,0.00013266,2]
[404161999,1769888898001,-500.0,0.00013266,2]
[404162000,1769888898023,-368.34716218,0.00013266,2]
[404162001,1769888901817,-131.65283782,0.00013266,2]
[404162002,1769888901840,-42.87520392,0.00013266,2]
[404162003,1769888903359,-457.12479608,0.00013266,2]
[404162004,1769888903380,-54.45537265,0.00013266,2]
[404162005,1769888903834,3494.00633717,0.000131,2]
[404162006,1769888905550,-199.67986037,0.00013266,2]
[404162007,1769888907663,-239.75566868,0.00013266,2]
[404162008,1769888910148,-6.1090983,0.00013266,2]
[404162009,1769888910172,-273.31184434,0.00013266,2]
[404162010,1769888911711,-226.68815566,0.00013266,2]
[404162011,1769888911734,-106.20586403,0.00013266,2]
[404162012,1769888913737,-393.79413597,0.00013266,2]
[404162013,1769888913759,-367.23733741,0.00013266,2]
[404162015,1769888926663,1000.78714206,0.000131,2]
[404162017,1769888960397,-181.02881267,0.00013265,2]
[404162018,1769888961867,-200.17639237,0.00013265,2]
[404162019,1769888971397,-156.97129137,0.00013265,2]
[404162020,1769888971428,-500.0,0.00013265,2]
[404162021,1769888971462,-538.42037433,0.00013265,2]
[404162022,1769888971493,-500.0,0.00013265,2]
[404162023,1769888971524,-538.42037433,0.00013265,2]
[404162024,1769888971552,-538.42037433,0.00013265,2]
[404162025,1769888971581,-500.0,0.00013265,2]
[404162026,1769888971610,-538.42037433,0.00013265,2]
[404162027,1769888971641,-500.0,0.00013265,2]
[404162028,1769888971669,-538.42037433,0.00013265,2]
[404162029,1769888971837,-301.86367396,0.00013265,2]
[404162030,1769888979355,-198.13632604,0.00013265,2]
[404162031,1769888979387,-538.42037433,0.00013265,2]
[404162032,1769888979419,-500.0,0.00013265,2]
[404162033,1769888979450,-538.42037433,0.00013265,2]
[404162034,1769888979479,-500.0,0.00013265,2]
[404162035,1769888979506,-500.0,0.00013265,2]
[404162036,1769888979537,-538.42037433,0.00013265,2]
[404162037,1769888979567,-538.42037433,0.00013265,2]
[404162038,1769888979597,-500.0,0.00013265,2]
[404162039,1769888979629,-538.42037433,0.00013265,2]
[404162040,1769888979780,-219.53360462,0.00013265,2]
[404162041,1769888982802,-280.46639538,0.00013265,2]
[404162042,1769888982832,-500.0,0.00013265,2]
[404162043,1769888982955,-538.42037433,0.00013265,2]
[404162044,1769888982984,-500.0,0.00013265,2]
[404162045,1769888983012,-538.42037433,0.00013265,2]
[404162046,1769888983041,-500.0,0.00013265,2]
[404162047,1769888983070,-538.42037433,0.00013265,2]
[404162048,1769888983099,-538.42037433,0.00013265,2]
[404162049,1769888983127,-500.0,0.00013265,2]
[404162050,1769888983156,-538.42037433,0.00013265,2]
[404162051,1769888983312,-54.87346594,0.00013265,2]
[404162052,1769888992152,4057.85882165,0.000131,2]
[404162078,1769889032378,-1200.0,0.00013264,2]
[404162079,1769889032390,-608.0,0.00013264,2]
[404162080,1769889032400,-50000.0,0.00013265,2]
[404162081,1769889032412,-445.12653406,0.00013265,2]
[404162082,1769889032423,-538.42037433,0.00013265,2]
[404162083,1769889032435,-500.0,0.00013265,2]
[404162084,1769889032446,-538.42037433,0.00013265,2]
[404162085,1769889032456,-500.0,0.00013265,2]
[404162086,1769889032467,-222.41080888,0.00013265,2]
[404162087,1769889032478,-538.42037433,0.00013265,2]
[404162088,1769889032488,-500.0,0.00013265,2]
[404162089,1769889032499,-500.0,0.00013265,2]
[404162091,1769889032511,-538.42037433,0.00013265,2]
[404162092,1769889032521,-500.0,0.00013265,2]
[404162093,1769889032533,-538.42037433,0.00013265,2]
[404162095,1769889032543,-500.0,0.00013265,2]
[404162097,1769889032553,-538.42037433,0.00013265,2]
[404162099,1769889032565,-500.0,0.00013265,2]
[404162100,1769889032575,-538.42037433,0.00013265,2]
[404162101,1769889032589,-500.0,0.00013265,2]
[404162102,1769889032600,-538.42037433,0.00013265,2]
[404162103,1769889032610,-500.0,0.00013265,2]
[404162104,1769889032623,-538.42037433,0.00013265,2]
[404162105,1769889032634,-538.42037433,0.00013265,2]
[404162106,1769889032645,-538.42037433,0.00013265,2]
[404162107,1769889032656,-500.0,0.00013265,2]
[404162108,1769889032666,-538.42037433,0.00013265,2]
[404162109,1769889032676,-538.42037433,0.00013265,2]
[404162110,1769889032689,-500.0,0.00013265,2]
[404162111,1769889032702,-538.42037433,0.00013265,2]
[404162112,1769889032713,-500.0,0.00013265,2]
[404162113,1769889032723,-538.42037433,0.00013265,2]
[404162114,1769889032735,-500.0,0.00013265,2]
[404162115,1769889032746,-538.42037433,0.00013265,2]
[404162116,1769889032757,-500.0,0.00013265,2]
[404162117,1769889032767,-538.42037433,0.00013265,2]
[404162118,1769889032778,-538.42037433,0.00013265,2]
[404162119,1769889032787,-538.42037433,0.00013265,2]
[404162120,1769889032797,-500.0,0.00013265,2]
[404162121,1769889032808,-500.0,0.00013265,2]
[404162122,1769889032818,-500.0,0.00013265,2]
[404162123,1769889032829,-538.42037433,0.00013265,2]
[404162124,1769889032840,-538.42037433,0.00013265,2]
[404162125,1769889032851,-538.42037433,0.00013265,2]
[404162126,1769889032861,-500.0,0.00013265,2]
[404162127,1769889032872,-538.42037433,0.00013265,2]
[404162128,1769889032884,-500.0,0.00013265,2]
[404162129,1769889032895,-538.42037433,0.00013265,2]
[404162130,1769889032906,-538.42037433,0.00013265,2]
[404162131,1769889032916,-538.42037433,0.00013265,2]
[404162132,1769889032930,-538.42037433,0.00013265,2]
[404162133,1769889032941,-538.42037433,0.00013265,2]
[404162134,1769889032953,-538.42037433,0.00013265,2]
[404162135,1769889032964,-538.42037433,0.00013265,2]
[404162136,1769889032974,-538.42037433,0.00013265,2]
[404162137,1769889032985,-538.42037433,0.00013265,2]
[404162138,1769889032996,-538.42037433,0.00013265,2]
[404162139,1769889033006,-538.42037433,0.00013265,2]
[404162140,1769889033018,-538.42037433,0.00013265,2]
[404162141,1769889033030,-538.42037433,0.00013265,2]
[404162142,1769889033040,-538.42037433,0.00013265,2]
[404162143,1769889033053,-538.42037433,0.00013265,2]
[404162144,1769889033067,-538.42037433,0.00013265,2]
[404162145,1769889033078,-538.42037433,0.00013265,2]
[404162146,1769889033089,-538.42037433,0.00013265,2]
[404162147,1769889033100,-538.42037433,0.00013265,2]
[404162148,1769889033111,-538.42037433,0.00013265,2]
[404162149,1769889033121,-538.42037433,0.00013265,2]
[404162150,1769889033131,-500.0,0.00013265,2]
[404162151,1769889033141,-500.0,0.00013265,2]
[404162152,1769889033150,-500.0,0.00013265,2]
[404162153,1769889033160,-500.0,0.00013265,2]
[404162154,1769889033170,-250.0,0.00013265,2]
[404162155,1769889033180,-531.47301467,0.00013265,2]
[404162156,1769889033189,-531.47301467,0.00013265,2]
[404162157,1769889033199,-531.47301467,0.00013265,2]
[404162158,1769889033210,-531.47301467,0.00013265,2]
[404162159,1769889033219,-531.47301467,0.00013265,2]
[404162160,1769889033230,-531.47301467,0.00013265,2]
[404162161,1769889033241,-531.47301467,0.00013265,2]
[404162162,1769889033252,-531.47301467,0.00013265,2]
[404162163,1769889033264,-531.47301467,0.00013265,2]
[404162164,1769889033274,-531.47301467,0.00013265,2]
[404162165,1769889033284,-531.47301467,0.00013265,2]
[404162166,1769889033295,-531.47301467,0.00013265,2]
[404162167,1769889033308,-531.47301467,0.00013265,2]
[404162168,1769889033318,-531.47301467,0.00013265,2]
[404162169,1769889033327,-531.47301467,0.00013265,2]
[404162170,1769889033337,-531.47301467,0.00013265,2]
[404162171,1769889033347,-531.47301467,0.00013265,2]
[404162172,1769889033358,-531.47301467,0.00013265,2]
[404162173,1769889033367,-531.47301467,0.00013265,2]
[404162174,1769889033378,-531.47301467,0.00013265,2]
[404162175,1769889033388,-531.47301467,0.00013265,2]
[404162176,1769889033397,-531.47301467,0.00013265,2]
[404162177,1769889033407,-531.47301467,0.00013265,2]
[404162178,1769889033418,-531.47301467,0.00013265,2]
[404162179,1769889033428,-531.47301467,0.00013265,2]
[404162180,1769889033438,-531.47301467,0.00013265,2]
[404162181,1769889033447,-531.47301467,0.00013265,2]
[404162182,1769889033458,-531.47301467,0.00013265,2]
[404162183,1769889033467,-531.47301467,0.00013265,2]
[404162184,1769889033477,-531.47301467,0.00013265,2]
[404162185,1769889033487,-531.47301456,0.00013265,2]
[404162186,1769889033498,-424.31992265,0.00013266,2]
[404162187,1769889033508,-500.0,0.00013273,2]
[404162188,1769889033518,-500.0,0.00013273,2]
[404162189,1769889033528,-500.0,0.00013273,2]
[404162190,1769889033700,-500.0,0.00013273,2]
[404162191,1769889033715,-500.0,0.00013273,2]
[404162192,1769889033726,-500.0,0.00013273,2]
[404162193,1769889033739,-500.0,0.00013273,2]
[404162194,1769889033749,-500.0,0.00013273,2]
[404162195,1769889033759,-549.30059528,0.00013273,2]
[404162196,1769889033768,-500.0,0.00013273,2]
[404162197,1769889033777,-500.0,0.00013273,2]
[404162198,1769889033786,-507.77467851,0.00013273,2]
[404162199,1769889033796,-423.27562291,0.00013273,2]
[404162200,1769889033807,-162.32798863,0.00013273,2]
[404162201,1769889033816,-500.0,0.00013273,2]
[404162202,1769889033826,-500.0,0.00013273,2]
[404162203,1769889033835,-500.0,0.00013273,2]
[404162204,1769889033845,-500.0,0.00013273,2]
[404162205,1769889033854,-500.0,0.00013273,2]
[404162206,1769889033864,-316.93787772,0.00013273,2]
[404162207,1769889033874,-500.0,0.00013273,2]
[404162208,1769889033884,-217.67254982,0.00013273,2]
[404162209,1769889033893,-500.0,0.00013273,2]
[404162210,1769889033903,-500.0,0.00013273,2]
[404162211,1769889033912,-500.0,0.00013273,2]
[404162212,1769889033921,-549.14157475,0.00013273,2]
[404162213,1769889033931,-284.17313793,0.00013273,2]
[404162214,1769889033940,-500.0,0.00013273,2]
[404162215,1769889033950,-500.0,0.00013273,2]
[404162216,1769889033960,-500.0,0.00013273,2]
[404162217,1769889033970,-167.97102818,0.00013273,2]
[404162218,1769889033979,-166.00222817,0.00013273,2]
[404162219,1769889033988,-500.0,0.00013273,2]
[404162220,1769889033997,-500.0,0.00013273,2]
[404162221,1769889034007,-500.0,0.00013273,2]
[404162222,1769889034016,-500.000001,0.00013273,2]
[404162223,1769889034026,-500.0,0.00013273,2]
[404162224,1769889034035,-500.0,0.00013273,2]
[404162225,1769889034044,-500.0,0.00013273,2]
[404162226,1769889034054,-500.0,0.00013273,2]
[404162227,1769889034064,-619.456376,0.00013273,2]
[404162228,1769889034074,-269.47322228,0.00013273,2]
[404162229,1769889034084,-500.0,0.00013273,2]
[404162230,1769889034094,-500.0,0.00013273,2]
[404162231,1769889034103,-172.08774487,0.00013273,2]
[404162232,1769889034112,-156.95670322,0.00013273,2]
[404162233,1769889034122,-500.0,0.00013273,2]
[404162234,1769889034131,-500.0,0.00013273,2]
[404162235,1769889034141,-502.31062213,0.00013273,2]
[404162236,1769889034150,-500.0,0.00013273,2]
[404162237,1769889034160,-500.0,0.00013273,2]
[404162238,1769889034169,-500.0,0.00013273,2]
[404162239,1769889034178,-500.0,0.00013273,2]
[404162240,1769889034187,-500.0,0.00013273,2]
[404162241,1769889034196,-500.0,0.00013273,2]
[404162242,1769889034205,-500.0,0.00013273,2]
[404162243,1769889034215,-201.23226476,0.00013673,2]
[404162244,1769889034224,-300.0,0.00013673,2]
[404162245,1769889034233,-500.0,0.00013698,2]
[404162246,1769889034242,-500.0,0.00013698,2]
[404162247,1769889034251,-500.0,0.00013698,2]
[404162248,1769889034260,-442.2776453,0.00013698,2]
[404162249,1769889034269,-500.0,0.00013698,2]
[404162250,1769889034278,-500.0,0.00013698,2]
[404162251,1769889034287,-500.0,0.00013698,2]
[404162252,1769889034296,-500.0,0.00013698,2]
[404162253,1769889034305,-527.43989334,0.00013698,2]
[404162254,1769889034314,-515.45788341,0.00013698,2]
[404162255,1769889034323,-500.0,0.00013699,2]
[404162256,1769889034332,-500.0,0.00013699,2]
[404162257,1769889034341,-160.34286598,0.00013699,2]
[404162258,1769889034350,-500.0,0.00013699,2]
[404162259,1769889034360,-500.0,0.00013699,2]
[404162260,1769889034369,-500.0,0.00013699,2]
[404162261,1769889034378,-500.0,0.00013699,2]
[404162262,1769889034390,-368.23248936,0.00013699,2]
[404162263,1769889034399,-500.0,0.00013699,2]
[404162264,1769889034409,-500.0,0.00013699,2]
[404162265,1769889034418,-500.0,0.00013699,2]
[404162266,1769889034427,-500.0,0.00013699,2]
[404162267,1769889034436,-500.65001385,0.00013699,2]
[404162268,1769889034445,-194.72932748,0.00013699,2]
[404162269,1769889034454,-500.72497294,0.00013699,2]
[404162270,1769889034464,-500.0,0.00013699,2]
[404162271,1769889034474,-533.0826609,0.00013699,2]
[404162272,1769889034483,-500.75803963,0.00013699,2]
[404162273,1769889034492,-501.76365168,0.00013699,2]
[404162274,1769889034501,-500.0,0.00013699,2]
[404162275,1769889034511,-502.00459045,0.00013699,2]
[404162276,1769889034521,-500.0,0.00013699,2]
[404162277,1769889034530,-500.0,0.00013699,2]
[404162278,1769889034539,-314.792435,0.00013699,2]
[404162279,1769889034548,-500.0,0.00013699,2]
[404162280,1769889034558,-500.0,0.00013699,2]
[404162281,1769889034568,-202.54319281,0.00013699,2]
[404162282,1769889034577,-1000.0,0.00013821,2]
[404162283,1769889034586,-1000.0,0.00013821,2]
[404162284,1769889034595,-1000.0,0.00013821,2]
[404162285,1769889034605,-1000.0,0.00013821,2]
[404162286,1769889034614,-500.0,0.00013821,2]
[404162287,1769889034623,-1000.0,0.00013821,2]
[404162288,1769889034632,-502.06898287,0.00013821,2]
[404162289,1769889034641,-500.0,0.00013821,2]
[404162290,1769889034650,-500.0,0.00013821,2]
[404162291,1769889034659,-500.0,0.00013821,2]
[404162292,1769889034668,-1000.0,0.00013821,2]
[404162293,1769889034677,-1000.0,0.00013821,2]
[404162294,1769889034690,-1000.0,0.00013821,2]
[404162295,1769889034699,-1000.0,0.00013821,2]
[404162296,1769889034708,-1000.0,0.00013821,2]
[404162297,1769889034717,-662.52274592,0.00013821,2]
[404162298,1769889034726,-500.0,0.00013821,2]
[404162299,1769889034735,-500.0,0.00013821,2]
[404162300,1769889034745,-500.0,0.00013821,2]
[404162301,1769889034754,-500.0,0.00013821,2]
[404162302,1769889034764,-500.0,0.00013821,2]
[404162303,1769889034774,-1000.0,0.00013821,2]
[404162304,1769889034783,-295.30906235,0.00013821,2]
[404162305,1769889034793,-1000.0,0.00013821,2]
[404162306,1769889034802,-1000.0,0.00013821,2]
[404162307,1769889034813,-300.0,0.00014096,2]
[404162308,1769889034822,-300.0,0.00014096,2]
[404162309,1769889034831,-300.0,0.00014096,2]
[404162310,1769889034841,-300.0,0.00014096,2]
[404162311,1769889034851,-300.0,0.00014096,2]
[404162312,1769889034860,-300.0,0.00014096,2]
[404162313,1769889034870,-300.0,0.00014096,2]
[404162314,1769889034880,-300.0,0.00014096,2]
[404162315,1769889034889,-300.0,0.00014096,2]
[404162316,1769889034898,-300.0,0.00014096,2]
[404162317,1769889034907,-300.0,0.00014096,2]
[404162318,1769889034917,-300.0,0.00014096,2]
[404162319,1769889034926,-300.0,0.00014096,2]
[404162320,1769889034936,-300.0,0.00014096,2]
[404162321,1769889034945,-300.0,0.00014096,2]
[404162322,1769889034955,-300.0,0.00014221,2]
[404162323,1769889034964,-1000.0,0.00014247,2]
[404162324,1769889034973,-500.84679195,0.00014247,2]
[404162325,1769889034982,-1000.0,0.00014247,2]
[404162326,1769889034992,-784.76215271,0.00014247,2]
[404162327,1769889035002,-820.12567473,0.00014247,2]
[404162328,1769889035012,-564.71141812,0.00014247,2]
[404162329,1769889035022,-1000.0,0.00014247,2]
[404162330,1769889035031,-407.76396207,0.00014247,2]
[404162331,1769889035041,-235.9475744,0.00014368,2]
[404162332,1769889035050,-1241.4327344,0.00014368,2]
[404162333,1769889035061,-696.99444629,0.00014368,2]
[404162334,1769889035070,-517.70214457,0.00014368,2]
[404162335,1769889035079,-497.74340674,0.00014368,2]
[404162336,1769889035089,-1537.09130346,0.00014368,2]
[404162337,1769889035098,-500.0,0.00014368,2]
[404162338,1769889035107,-1384.82582551,0.00014368,2]
[404162339,1769889035116,-858.94419256,0.00014368,2]
[404162340,1769889035125,-1017.09664357,0.00014368,2]
[404162341,1769889035134,-1500.0,0.00014368,2]
[404162342,1769889035143,-1290.01247351,0.00014368,2]
[404162343,1769889035152,-1500.0,0.00014368,2]
[404162344,1769889035161,-600.0,0.00014377,2]
[404162345,1769889035170,-500.0,0.00014795,2]
[404162346,1769889035180,-1107.28457106,0.00014795,2]
[404162347,1769889035189,-2000.0,0.00014916,2]
[404162348,1769889035198,-2000.0,0.00014916,2]
[404162349,1769889035207,-678.77,0.00015342,2]
[404162350,1769889035216,-1131.25658532,0.00015464,2]
[404162351,1769889035226,-1000.0,0.00015464,2]
[404162352,1769889035235,-720.0,0.00015815,2]
[404162353,1769889035244,-2000.0,0.00016438,2]
[404162354,1769889035255,-160.74365225,0.00016438,2]
[404162355,1769889035264,-864.0,0.00017396,2]
[404162356,1769889035274,-167.46051257,0.000176,2]
[404162357,1769889035283,-301.42892263,0.000176,2]
[404162358,1769889035292,-230.2911174,0.000176,2]
[404162359,1769889035302,-414.52401131,0.000176,2]
[404162360,1769889035314,-250.0,0.00017735,2]
[404162361,1769889035324,-535.87364024,0.00018378,2]
[404162362,1769889035333,-736.93157567,0.00018383,2]
[404162363,1769889035342,-347.71287257,0.00018601,2]
[404162364,1769889035351,-1000.0,0.00019136,2]
[404162365,1769889035360,-2000.0,0.00019178,12]
[404162366,1769889035370,-1000.0,0.00021049,2]
[404162367,1769889035379,-244.0,0.00021049,2]
[404162368,1769889035388,-2000.0,0.00021917,22]
[404162369,1769889035397,-1492.0,0.00023054,10]
[404162370,1769889035406,-152.07,0.00023054,10]
[404162371,1769889035416,-152.07,0.00023054,10]
[404162372,1769889035425,-152.07,0.00023054,10]
[404162373,1769889035434,-152.07,0.00023054,10]
[404162374,1769889035443,-152.07,0.00023054,10]
[404162375,1769889035453,-152.07,0.00023054,10]
[404162376,1769889035463,-152.09,0.00023054,10]
[404162377,1769889035473,-155.91,0.000231,7]
[404162378,1769889035483,-1000.0,0.00023154,10]
[404162379,1769889035493,-492.0,0.00023154,10]
[404162380,1769889035502,-2000.0,0.00024657,32]
[404162381,1769889035511,-380.0,0.00024658,2]
[404162382,1769889035522,-977.62765191,0.000249,2]
[404162383,1769889035531,-1000.0,0.0002547,10]
[404162384,1769889035543,-791.0,0.0002547,10]
[404162385,1769889035556,-160.0,0.00025789,2]
[404162386,1769889035572,-2000.0,0.00027397,42]
[404162387,1769889035594,-1000.0,0.00028017,30]
[404162388,1769889035615,-1000.0,0.00028017,30]
[404162389,1769889035634,-151.0,0.000284,18]
[404162390,1769889035655,-166.88,0.000284,2]
[404162391,1769889035675,-500.0,0.00028481,7]
[404162392,1769889035697,-263.2370541,0.00028481,7]
[404162393,1769889035721,-267.31172849,0.00028481,7]
[404162394,1769889035741,-169.63216851,0.00028481,7]
[404162395,1769889035762,-222.70372137,0.00028481,7]
[404162396,1769889035782,-500.0,0.00028481,7]
[404162397,1769889035802,-500.0,0.00028481,7]
[404162398,1769889035826,-210.95757695,0.00028481,7]
[404162399,1769889035849,-203.36347291,0.00028481,7]
[404162400,1769889035865,-500.0,0.00028618,7]
[404162401,1769889035881,-500.0,0.00028618,7]
[404162402,1769889035892,-500.0,0.00028618,7]
[404162403,1769889035903,-500.0,0.00028755,7]
[404162404,1769889035912,-500.0,0.00028755,7]
[404162405,1769889035922,-500.0,0.00028755,7]
[404162406,1769889035931,-10000.0,0.00028814,2]
[404162407,1769889035940,-500.0,0.00028892,7]
[404162408,1769889035949,-500.0,0.00028892,7]
[404162409,1769889035958,-469.04389056,0.00029,30]
[404162410,1769889035967,-500.0,0.00029029,7]
[404162411,1769889035976,-500.0,0.00029029,7]
[404162412,1769889035985,-500.0,0.00029166,7]
[404162413,1769889035995,-500.0,0.00029166,7]
[404162414,1769889036005,-325.87588397,0.00029251,2]
[404162415,1769889036014,-500.0,0.00029261,7]
[404162416,1769889036023,-500.0,0.00029278,7]
[404162417,1769889036032,-182.51,0.000293,14]
[404162418,1769889036041,-500.0,0.00029303,7]
[404162419,1769889036051,-500.0,0.00029303,7]
[404162420,1769889036062,-500.0,0.0002944,7]
[404162421,1769889036072,-500.0,0.0002944,7]
[404162422,1769889036081,-500.0,0.00029577,7]
[404162423,1769889036091,-500.0,0.00029577,7]
[404162424,1769889036100,-605.45611552,0.00029714,7]
[404162425,1769889036110,-500.0,0.00029714,7]
[404162426,1769889036119,-500.0,0.00029851,7]
[404162427,1769889036128,-500.0,0.00029858,7]
[404162428,1769889036138,-500.0,0.00029922,7]
[404162429,1769889036147,-2000.0,0.00030136,52]
[404162430,1769889036156,-800.0,0.00030326,7]
[404162431,1769889036166,-1000.0,0.00030818,30]
[404162432,1769889036175,-1000.0,0.00030818,30]
[404162433,1769889036184,-579.0,0.00030818,30]
[404162434,1769889036193,-186.0049703,0.00031,120]
[404162435,1769889036202,-235.31413048,0.00031,120]
[404162436,1769889036212,-211.35772596,0.00031,120]
[404162437,1769889036221,-199.6146215,0.00031,120]
[404162438,1769889036231,-172.62923835,0.00031,120]
[404162439,1769889036240,-204.40679625,0.00031,120]
[404162440,1769889036250,-169.99846014,0.00031,120]
[404162441,1769889036260,-160.0,0.00031832,2]
[404162442,1769889036268,-211.35772596,0.000319,120]
[404162443,1769889036278,-172.62923835,0.000319,120]
[404162444,1769889036287,-1041.66666667,0.00032171,2]
[404162445,1769889036297,-325.87588397,0.00032228,2]
[404162446,1769889036306,-66064.7366245,0.00032238,2]
[404162447,1769889036316,-2000.0,0.00032876,62]
[404162448,1769889036325,-709.43,0.00032877,10]
[404162449,1769889036334,-211.35772596,0.000329,120]
[404162450,1769889036343,-172.62923835,0.000329,120]
[404162451,1769889036352,-777.18169568,0.000332,117]
[404162452,1769889036361,-211.35772596,0.000339,120]
[404162453,1769889036370,-172.62923835,0.000339,120]
[404162454,1769889036379,-1000.0,0.000339,30]
[404162455,1769889036389,-1000.0,0.000339,30]
[404162456,1769889036398,-1000.0,0.000339,30]
[404162457,1769889036407,-211.35772596,0.000349,120]
[404162458,1769889036417,-710.0,0.00035194,11]
[404162459,1769889036426,-209.07,0.000352,60]
[404162460,1769889036435,-2000.0,0.00035616,120]
[404162461,1769889036444,-151.0,0.000364,11]
[404162462,1769889036453,-1041.66666667,0.00036517,7]
[404162463,1769889036463,-4166.66,0.00036599,7]
[404162464,1769889036472,-4166.66,0.00036599,7]
[404162465,1769889036482,-4166.66,0.00036599,7]
[404162466,1769889036575,-4166.66,0.00036599,7]
[404162467,1769889036586,-4166.66,0.00036599,7]
[404162468,1769889036596,-4166.66,0.00036599,7]
[404162469,1769889036606,-4166.66,0.00036599,7]
[404162470,1769889036615,-4166.66,0.00036599,7]
[404162471,1769889036625,-4166.66,0.00036599,7]
[404162472,1769889036634,-4166.66,0.00036599,7]
[404162473,1769889036644,-4166.66,0.00036599,7]
[404162474,1769889036653,-4166.66,0.00036599,7]
[404162475,1769889036663,-4166.66,0.00036599,7]
[404162476,1769889036672,-4166.82,0.00036599,7]
[404162477,1769889036682,-6662.66,0.00036599,3]
[404162478,1769889036698,-6662.66,0.00036599,3]
[404162479,1769889036708,-6662.66,0.00036599,3]
[404162480,1769889036719,-6662.66,0.00036599,3]
[404162481,1769889036728,-6662.66,0.00036599,3]
[404162482,1769889036739,-6662.66,0.00036599,3]
[404162483,1769889036750,-6662.66,0.00036599,3]
[404162484,1769889036760,-6662.66,0.00036599,3]
[404162485,1769889036770,-6662.66,0.00036599,3]
[404162486,1769889036780,-6662.66,0.00036599,3]
[404162487,1769889036789,-6662.66,0.00036599,3]
[404162488,1769889036798,-6662.66,0.00036599,3]
[404162489,1769889036807,-6662.66,0.00036599,3]
[404162490,1769889036817,-6662.66,0.00036599,3]
[404162491,1769889036826,-6662.66,0.00036599,3]
[404162492,1769889036835,-6662.66,0.00036599,3]
[404162493,1769889036844,-6662.66,0.00036599,3]
[404162494,1769889036854,-6662.66,0.00036599,3]
[404162495,1769889036864,-6662.66,0.00036599,3]
[404162496,1769889036874,-6662.66,0.00036599,3]
[404162497,1769889036883,-6662.66,0.00036599,3]
[404162498,1769889036893,-6662.66,0.00036599,3]
[404162499,1769889036903,-6662.66,0.00036599,3]
[404162500,1769889036912,-6662.72261545,0.00036599,3]
[404162501,1769889036922,-500.0,0.00036599,2]
[404162502,1769889036931,-500.0,0.00036599,2]
[404162503,1769889036941,-500.0,0.00036599,2]
[404162504,1769889036950,-500.0,0.00036599,2]
[404162505,1769889036960,-500.0,0.00036599,2]
[404162506,1769889036969,-587.27716317,0.00036599,2]
[404162507,1769889036978,-605.5062385,0.00036599,2]
[404162508,1769889036987,-605.5062385,0.00036599,2]
[404162509,1769889036997,-605.5062385,0.00036599,2]
[404162510,1769889037007,-605.5062385,0.00036599,2]